Cogmind - Beta 16.1 @@@ ROGUE MODE // 2026.03.04 @ 05:24:05 Player: Sen Result: System corrupted Performance ------------- Evolutions (7) 3500 Regions Visited (14) 2800 Robots Destroyed (109) 545 Value Destroyed (2995) 2995 Prototype IDs (218) 4360 Alien Tech Used (0) 0 Bonus (3837) 3837 TOTAL SCORE: 18037 Bonus ------- Follower Combat Kills 37 Met Data Miner 300 Used Data Conduit 3000 Scanned by Researcher 500 Cogmind --------- Core Integrity 0/1300 Matter 300/300 Energy 100/100 System Corruption 100% Temperature Cool (0) Movement Rolling (95) Ox1 Location -3/Testing Parts ------- > --- POWER (2) -------- (None) > --- PROPULSION (6) --- Enhanced Armored Medium Treads Wheel > --- UTILITY (10) ----- Advanced Heat Sink Medium Storage Unit Enhanced Optical Array Improved Signal Interpreter Graphene Brace System Shield > --- WEAPON (3) ------- (None) > --- INVENTORY (10) --- Wheel Improved Antigrav System Cooled Antigrav System Xenon Bombardment Thruster Peak State ------------ > --- POWER ------------ Light Antimatter Reactor Light Particle Reactor > --- PROPULSION ------- Biometal Leg Linear Gravjet Improved Linear Gravjet Impulse Thruster > --- UTILITY ---------- Enhanced Optical Array Improved Sensor Array Improved Signal Interpreter Core Analyzer Advanced Transmission Jammer Advanced ECM Suite Graphene Brace System Restoration Module > --- WEAPON ----------- Improved Lightning Gun Improved Lightning Gun Tesla Rifle > --- INVENTORY -------- Light Particle Reactor Improved Lightning Gun Tesla Rifle Improved Datajack Powered Hammer [Rating: 100] Favorites ----------- Power Improved Ion Engine Engine Improved Ion Engine Power Core Light Nuclear Core Reactor Light Particle Reactor Propulsion Aluminum Leg Treads Improved Treads Leg Aluminum Leg Wheel Compact Wheel Hover Unit Improved Linear Gravjet Flight Unit Improved Flight Unit Utility Improved Signal Interpreter Device Improved Sensor Array Storage Large Storage Unit Processor Improved Signal Interpreter Hackware Deep Network Scanner Protection Propulsion Shielding Weapon Spear Energy Gun Beam Rifle Energy Cannon Ion Cannon Ballistic Gun Heavy Assault Rifle Launcher Long-range Missile Launcher Special Weapon Mining Laser Impact Weapon Powered Hammer Piercing Weapon Spear Special Melee Weapon Improved Datajack Build | -11 -10 -9 -9 -8 -7 -6 -6 -6 -6 -5 -5 -4 -3 -3 ------- Run | Yrd Mat Mat Min Mat Fac Fac Low Low Dat Pro Fac Fac Res Tes Slots Evolved 14 | . . 2 . 2 2 2 . . . . 2 2 2 . Power 1 | . . . . 1 . . . . . . . . . . Propulsion 4 | . . 1 . 1 1 . . . . . 1 . . . Utility 8 | . . 1 . . 1 2 . . . . 1 2 1 . Weapon 1 | . . . . . . . . . . . . . 1 . Parts Attached 176 | 6 15 45 5 8 12 7 5 4 4 3 12 7 23 20 Power 25 | 1 2 6 1 2 1 1 1 2 . . 1 . 4 3 Engine 17 | 1 2 6 1 2 1 1 1 1 . . 1 . . . Core 1 | . . . . . . . . 1 . . . . . . Reactor 7 | . . . . . . . . . . . . . 4 3 Propulsion 51 | 2 5 16 . 3 1 2 . 1 2 1 2 2 8 6 Treads 7 | . . 3 . . . . . . . . . . 2 2 Leg 16 | 2 1 10 . . . . . . . . . . 3 . Wheel 9 | . 4 . . . . . . . . . . 1 . 4 Hover 3 | . . . . . . . . . . . . 1 2 . Flight 16 | . . 3 . 3 1 2 . 1 2 1 2 . 1 . Utility 56 | 1 4 8 3 2 5 3 3 1 2 1 9 3 4 7 Device 27 | . 1 3 2 1 2 . 3 . . 1 6 3 2 3 Storage 8 | 1 2 1 . . . 1 . 1 . . . . . 2 Processor 9 | . 1 1 . 1 2 1 . . . . 2 . 1 . Hackware 6 | . . . . . 1 1 . . 2 . 1 . . 1 Protection 6 | . . 3 1 . . . . . . . . . 1 1 Artifact . | . . . . . . . . . . . . . . . Weapon 44 | 2 4 15 1 1 5 1 1 . . 1 . 2 7 4 Energy Gun 20 | 2 1 6 1 . 2 . . . . . . 2 4 2 Energy Cannon 6 | . . 6 . . . . . . . . . . . . Ballistic Gun 9 | . 1 3 . 1 . . . . . . . . 3 1 Ballistic Cannon . | . . . . . . . . . . . . . . . Launcher 1 | . . . . . . . 1 . . . . . . . Special Weapon 2 | . 1 . . . . . . . . . . . . 1 Impact Weapon 1 | . . . . . . 1 . . . . . . . . Slashing Weapon . | . . . . . . . . . . . . . . . Piercing Weapon 3 | . . . . . 2 . . . . 1 . . . . Special Melee Weapon 2 | . 1 . . . 1 . . . . . . . . . Unidentified Prototypes 4 | . . 2 . . . . . . 2 . . . . . Corrupted Parts 11 | . . 1 . . . . . . . . . . 10 . System Corruption 65 | . . 2 . . . . . . . . . . 63 . Parts Lost 101 | . 9 13 1 2 3 . 2 4 5 . 16 2 28 16 Power 17 | . 2 1 . 1 2 . . 1 1 . 2 . 4 3 Propulsion 32 | . 3 4 . . . . . 1 3 . 7 1 9 4 Utility 30 | . . 4 1 . 1 . 2 2 1 . 7 1 7 4 Weapon 22 | . 4 4 . 1 . . . . . . . . 8 5 Highest Loss Streak 16 | . 6 4 1 1 2 . 2 3 5 . 15 2 16 12 To Critical Strikes . | . . . . . . . . . . . . . . . Average Backups 8 | 1 8 13 15 4 4 5 9 9 10 7 7 2 4 2 Power 1 | . 1 1 3 . . . 2 2 2 3 2 . . . Propulsion 2 | . 2 4 5 . . 1 2 4 4 . . . . 1 Utility 1 | . 1 2 4 1 2 1 2 1 1 1 2 . . . Weapon 2 | . 2 3 2 2 . 1 1 1 1 1 2 1 2 . Tool/Special . | . . . . . . . . . . . . . . . Unused Backups 15 | . 2 3 . 6 . . . . . . . . . 4 Power 4 | . 1 1 . 2 . . . . . . . . . . Propulsion 6 | . . 1 . 1 . . . . . . . . . 4 Utility 4 | . . 1 . 3 . . . . . . . . . . Weapon . | . . . . . . . . . . . . . . . Tool/Special 1 | . 1 . . . . . . . . . . . . . Average Slot Usage (%) 85 | . 94 96 99 96 89 97 91 89 90 87 71 58 64 49 Engine 8 | . 13 9 11 15 12 11 7 3 6 5 3 7 1 . Reactor 1 | . . . . . . . . . . . . . 6 5 Treads 4 | . . 1 33 . . . . . . . . . . 5 Leg 10 | . 15 31 . . . . . . . . . . 5 . Wheel 1 | . 12 . . . . . . . . . . 4 . 3 Flight 9 | . . . . 35 30 33 33 32 31 31 22 . 2 . Device 9 | . 2 10 6 8 7 6 9 7 4 3 9 19 16 7 Storage 7 | . 14 11 11 . . 3 6 10 13 13 5 . . 4 Processor 9 | . 9 4 11 8 11 15 13 13 13 13 7 10 13 9 Hackware 1 | . . . . . 1 5 . . 2 6 8 4 . 3 Protection 3 | . . 5 4 8 7 6 6 2 . . . . . 1 Energy Gun 8 | . 17 8 12 15 1 . . . . . . 9 9 4 Energy Cannon 2 | . . 10 . . . . . . . . . . . . Ballistic Gun 2 | . 1 2 8 2 . . . . . . . . . 1 Piercing Weapon 2 | . . . . . 12 13 11 13 13 13 4 . . . Peak Build Rating 100 | 6 9 20 19 26 37 48 52 51 61 51 67 62 100 87 Average Rating 34 | 4 7 16 17 23 32 45 48 47 51 48 50 53 79 59 On Entrance 28 | . 6 5 17 16 24 37 48 50 51 40 51 22 51 15 Avg Prop Armor Cover (%) 10 | . 11 6 . . . . . . . . . 5 8 21 Naked Turns . | . . . . . . . . . . . . . . . Heaviest Build 88 | 12 88 45 34 14 15 28 29 28 27 23 30 28 48 57 Greatest Support 70 | 20 32 69 69 20 27 28 29 28 27 23 36 10 56 70 Greatest Overweight (x) 5 | 1 5 1 . . . 1 1 1 . . 4 2 4 2 Average Overweight (x) . | . 1 . . . . . . . . . . 1 . . Largest Inventory Capacity 25 | 8 25 15 15 15 5 10 10 10 10 10 10 5 5 10 Average Capacity 10 | 7 14 15 15 5 5 8 10 10 10 10 8 5 5 6 Most Carried 15 | 3 13 15 15 15 5 8 10 10 10 9 10 4 5 5 Average Carried 8 | 1 8 13 14 4 4 5 9 9 9 6 7 2 4 2 Final Capacity 15 | 8 15 15 15 5 5 10 10 10 10 10 5 5 5 10 Final Carried 15 | 3 10 15 15 5 5 8 10 10 9 7 4 2 1 4 Class Distribution -------------------- 33% | Mutant 21% | Scavenger-Mutant 18% | Sprinter 8% | Hacker-Sprinter 4% | Infiltrator-Skirmisher Dominant Class ---------------- Mutant | -10/Materials Scavenger-Mutant | -9/Materials Mutant | -9/Mines Sprinter | -8/Materials Sprinter | -7/Factory Sprinter | -6/Factory Sprinter | -6/Lower Caves Sprinter | -6/Lower Caves Sprinter | -6/Data Miner Hacker-Sprinter | -5/Proximity Caves Hacker-Sprinter | -5/Factory Hacker-Skirmisher | -4/Factory Infiltrator-Skirmisher | -3/Research Mutant | -3/Testing Resources | -11 -10 -9 -9 -8 -7 -6 -6 -6 -6 -5 -5 -4 -3 -3 ----------- Run | Yrd Mat Mat Min Mat Fac Fac Low Low Dat Pro Fac Fac Res Tes Matter Collected 2661 | 217 197 671 128 48 205 120 141 50 10 35 158 . 307 374 Remotely . | . . . . . . . . . . . . . . . Salvage Created 4698 | 23 444 1654 329 82 263 120 183 126 21 62 224 . 656 511 Parts 247 | 2 23 94 18 13 11 5 14 4 3 2 19 . 19 20 Haulers Intercepted 5 | . . 2 . . 3 . . . . . . . . . Recyclers Shooed 6 | . 1 2 1 . . . . . . . . . 1 1 Parts Field Recycled . | . . . . . . . . . . . . . . . Retrieved Matter . | . . . . . . . . . . . . . . . Parts Self-Destructed 17 | . . . . . . . 9 4 . 4 . . . . Prevented 5 | . . . . . . . 3 . . 2 . . . . Parts Restored . | . . . . . . . . . . . . . . . Kills | -11 -10 -9 -9 -8 -7 -6 -6 -6 -6 -5 -5 -4 -3 -3 ------- Run | Yrd Mat Mat Min Mat Fac Fac Low Low Dat Pro Fac Fac Res Tes Combat Hostiles Destroyed 66 | . 6 27 3 4 1 . 4 5 . 2 4 . 5 5 Melee 14 | . . . . . 1 . 4 5 . 1 3 . . . Guns 32 | . 4 13 3 4 . . . . . . . . 3 5 Cannons 13 | . . 13 . . . . . . . . . . . . AOE 3 | . 2 1 . . . . . . . . . . . . Classes Destroyed 18 | 1 3 6 1 . 1 . 2 . . 1 2 . . 1 Worker 8 | . . 3 1 1 . . . . . . 2 . . 1 Builder 4 | . . . 1 . 1 . . . . . 1 . . 1 Tunneler 3 | 1 . . 2 . . . . . . . . . . . Hauler 5 | . . 2 . . 3 . . . . . . . . . Recycler 12 | . 2 3 2 . . 1 . . . . . . 2 2 Minesweeper 2 | . . . . . . . 1 . . 1 . . . . Mechanic 1 | . . 1 . . . . . . . . . . . . Operator 1 | . . . . . . . . . . . 1 . . . Drone 3 | . . . . . . . . . . 2 . . 1 . Watcher 6 | . 2 2 . . 1 . . . . . . . 1 . Swarmer 21 | . . 3 . 4 . . 3 5 . . 2 . . 4 Grunt 23 | . 6 14 3 . . . . . . . . . . . Brawler 2 | . . 2 . . . . . . . . . . . . Researcher 1 | . . . . . . . . . . . . . . 1 Sentry 9 | . . 8 . . . . . . . . . . 1 . Hunter 3 | . . . . . 1 . . . . . . . 2 . Programmer 4 | . . . . . . . . . . . 2 . 1 1 Decomposer 1 | . . . . . . . 1 . . . . . . . Mutant 1 | . . . . . . . 1 . . . . . . . Best Kill Streak 6 | 1 3 5 3 4 3 1 3 2 1 2 4 . 3 6 Combat Bots Only 5 | . 2 5 2 4 1 . 3 2 . 1 3 . 2 4 Max Kills in Single Turn 3 | 1 3 2 1 1 1 1 1 1 1 1 1 . 1 2 Gunslinging . | . . . . . . . . . . . . . . . Exploded 2 | . 2 1 . . . . . . . . . . . . Melee 1 | . . . . . 1 . 1 1 . 1 1 . . . Uniques/NPCs Destroyed 1 | . . . . . . . . . 1 . . . . . Data Miner (-6/Data Miner) Combat | -11 -10 -9 -9 -8 -7 -6 -6 -6 -6 -5 -5 -4 -3 -3 -------- Run | Yrd Mat Mat Min Mat Fac Fac Low Low Dat Pro Fac Fac Res Tes Hostile Shots Fired 947 | . 79 236 22 80 14 . 14 21 11 . 114 12 197 147 Missed 260 | . 19 58 9 33 9 . . 7 6 . 36 1 50 32 Hits 687 | . 60 178 13 47 5 . 14 14 5 . 78 11 147 115 Melee 7 | . . 4 . . . . 3 . . . . . . . Projectile 680 | . 60 174 13 47 5 . 11 14 5 . 78 11 147 115 Critical Strikes 32 | . 3 6 . . . . . . . . 3 . 13 7 Actively Blocked 20 | . . . . . . . . . . . . . 13 7 Part Disruptions 4 | . . . 1 . . . . . . . . . 3 . Damage Taken 12335 | . 883 2289 141 632 74 . 235 208 234 . 1529 252 3207 2651 Core 3029 | . 198 301 16 261 12 . 42 48 131 . 819 51 797 353 Absorbed by Shields . | . . . . . . . . . . . . . . . Redirected to Shielding 115 | . . 70 . 17 . . 11 17 . . . . . . Core Remaining (%) 59 | 100 20 . 20 52 98 . . . . 74 18 95 . . Volleys Fired 247 | 2 39 103 20 19 . . 1 . . . . . 35 28 Largest 3 | 2 2 2 2 2 . . 1 . . . . . 3 3 Hottest 190 | 90 140 135 121 156 . . 43 . . . . . 190 190 Shots Fired 485 | 4 70 200 32 36 . . 1 . . . . . 79 63 Gun 400 | 4 66 131 24 33 . . . . . . . . 79 63 Cannon 69 | . . 69 . . . . . . . . . . . . Launcher 1 | . . . . . . . 1 . . . . . . . Special 15 | . 4 . 8 3 . . . . . . . . . . Kinetic 131 | . 19 54 8 14 . . . . . . . . 18 18 Thermal 195 | 2 32 94 24 22 . . . . . . . . . 21 Explosive 1 | . . . . . . . 1 . . . . . . . Electromagnetic 158 | 2 19 52 . . . . . . . . . . 61 24 Robot Hit Streak 16 | 1 5 16 11 3 . . . . . . . . 12 6 Robot Miss Streak 5 | 1 4 5 1 4 . . 1 . . . . . 3 4 Penetration Max 1 | . . . . . . . . . . . . . 1 . Secondary Targets 8 | . . 4 . 1 . . . . . . . . . 3 Max Gunslinging Chain 1 | . . 1 . 1 . . . . . . . . . 1 Shots Hit Robots 372 | 2 41 135 16 15 16 1 18 7 1 3 23 . 60 34 Core Hits 177 | 1 21 58 12 5 7 1 9 5 1 1 9 . 20 27 Critical Kills 1 | . . . . . . . . . . . . . 1 . Critical Parts Destroyed 4 | . . . . . . . . . . . 3 . 1 . Critical Strikes 18 | 1 1 1 1 2 1 . 1 1 1 1 4 . 3 . Burn 6 | 1 1 1 1 2 . . . . . . . . . . Destroy 2 | . . . . . . . . . . . . . 2 . Corrupt 1 | . . . . . . . . . . . . . 1 . Smash 3 | . . . . . . . . . . . 3 . . . Impale 6 | . . . . . 1 . 1 1 1 1 1 . . . Melee Attacks 133 | . 5 . . . 17 1 23 13 1 7 60 . 6 . Impact 18 | . . . . . . . . . . . 12 . 6 . Slashing . | . . . . . . . . . . . . . . . Piercing 97 | . . . . . 17 1 15 13 1 7 43 . . . Sneak Attacks 31 | . 5 . . . 4 1 12 . 1 1 7 . . . Combat Hostiles 2 | . . . . . . . 2 . . . . . . . Follow-up Attacks 4 | . . . . . 1 . 1 1 . . 1 . . . Damage Inflicted 8967 | 37 625 2596 260 251 643 46 738 207 95 156 820 . 1357 1136 Guns 4716 | 37 416 1395 260 251 . . . . . . . . 1231 1126 Cannons 1007 | . . 1007 . . . . . . . . . . . . Explosions 686 | . 209 187 . . . . 290 . . . . . . . Melee 2533 | . . . . . 643 46 448 207 95 156 820 . 118 . Ramming 25 | . . 7 . . . . . . . . . . 8 10 Kinetic 1657 | . 108 576 107 121 . . . . . . . . 421 324 Thermal 2612 | 12 290 1392 153 130 . . . . . . . . . 635 Explosive 408 | . 118 . . . . . 290 . . . . . . . Electromagnetic 1732 | 25 109 621 . . . . . . . . . . 810 167 Impact 405 | . . . . . . . . . . . 287 . 118 . Slashing . | . . . . . . . . . . . . . . . Piercing 2128 | . . . . . 643 46 448 207 95 156 533 . . . Highest Corruption 100 | . . 4 4 . . . . . . . 14 . 82 100 Average Corruption 16 | . . 2 4 . . . . . . . 9 . 27 83 Corruption Purged . | . . . . . . . . . . . . . . . Corruption Blocked . | . . . . . . . . . . . . . . . Effects 125 | . . 23 17 . . . . . . . 8 . 25 52 Message Errors 26 | . . 6 3 . . . . . . . 2 . 5 10 Matter Fused 22 | . . 2 6 . . . . . . . 3 . 3 8 Heat Flow Errors 12 | . . 5 3 . . . . . . . . . 2 2 Energy Discharges 8 | . . 1 3 . . . . . . . . . 1 3 Parts Rejected 3 | . . . . . . . . . . . . . 3 . Data Loss (minor) 12 | . . 4 1 . . . . . . . 1 . 3 3 Data Loss (major) 3 | . . 3 . . . . . . . . . . . . Misfires 3 | . . 1 . . . . . . . . . . 1 1 Alerts 4 | . . . 1 . . . . . . . . . 1 2 Misdirections 12 | . . . . . . . . . . . 2 . 1 9 Weapon Failures 20 | . . 1 . . . . . . . . . . 5 14 Overload Shots . | . . . . . . . . . . . . . . . Overflow Damage 333 | . 16 38 . . . . 25 10 . 90 154 . . . Projectiles 33 | . . 33 . . . . . . . . . . . . Explosions 34 | . 16 5 . . . . 13 . . . . . . . Melee 266 | . . . . . . . 12 10 . 90 154 . . . Knockbacks 1 | . . . . . . . . . . . . . 1 . Impact 1 | . . . . . . . . . . . . . 1 . Kinetic . | . . . . . . . . . . . . . . . Secondary . | . . . . . . . . . . . . . . . Self-Inflicted Damage 226 | . 96 78 . . . . 45 . . . . . 3 4 Shots 4 | . 1 2 . . . . 1 . . . . . . . Rammed 7 | . . . . . . . . . . . . . 3 4 Targets Rammed 8 | . . 1 . . . . . . . . . . 3 4 Kicked 1 | . . 1 . . . . . . . . . . . . Crushed . | . . . . . . . . . . . . . . . Highest Temperature 422 | 60 422 342 252 397 . 4 7 229 80 . 236 . 342 420 Average Temperature 110 | 31 139 96 45 152 . 2 2 125 42 . 113 . 111 172 Received Heat Transfer 1829 | . 516 813 106 135 9 . 49 . . . 9 45 81 66 Effects 20 | . 4 . . 4 . . . 1 . . 1 . 3 7 Shutdowns 9 | . 1 . . 2 . . . . . . . . . 6 Energy Bleed 4 | . 2 . . 2 . . . . . . . . . . Interference 5 | . . . . . . . . 1 . . 1 . 3 . Damage (minor) 2 | . 1 . . . . . . . . . . . . 1 Siege Activations . | . . . . . . . . . . . . . . . Martial Activations . | . . . . . . . . . . . . . . . Shielding Activations . | . . . . . . . . . . . . . . . Robots Disrupted . | . . . . . . . . . . . . . . . Combat Hostiles . | . . . . . . . . . . . . . . . Robots Corrupted 4 | . . . . . . . . . . . 1 . 3 . Combat Hostiles 3 | . . . . . . . . . . . 1 . 2 . Parts Fried 13 | . . 3 . . . . . . . . . . 10 . Impact Corruptions 8 | . . . . . . . . . . . 8 . . . Robots Melted . | . . . . . . . . . . . . . . . Combat Hostiles . | . . . . . . . . . . . . . . . Parts Melted 7 | . 1 4 . . . . . . . . . . . 2 Heat Transferred 5099 | 111 742 2371 444 481 . . . . . . . . . 950 Parts Sabotaged . | . . . . . . . . . . . . . . . Parts Stolen 1 | . . . . . . . 1 . . . . . . . Parts Stripped . | . . . . . . . . . . . . . . . Power Chain Reactions 4 | . 2 2 . . . . . . . . . . . . Alert | -11 -10 -9 -9 -8 -7 -6 -6 -6 -6 -5 -5 -4 -3 -3 ------- Run | Yrd Mat Mat Min Mat Fac Fac Low Low Dat Pro Fac Fac Res Tes Maximum Alert Level 1 | . . 1 . 1 . . . . . . . . . . Low Security (%) 94 | 100 100 82 100 95 100 100 . . . . 100 100 100 100 Level 1 5 | . . 17 . 4 . . . . . . . . . . Level 2 . | . . . . . . . . . . . . . . . Level 3 . | . . . . . . . . . . . . . . . Level 4 . | . . . . . . . . . . . . . . . Level 5 . | . . . . . . . . . . . . . . . High Security . | . . . . . . . . . . . . . . . Max Security . | . . . . . . . . . . . . . . . Peak Influence 349 | 5 99 349 132 316 170 63 . . . . 197 47 30 51 Initial 150 | . . . 132 13 142 58 . . . . 150 47 . . Average 62 | . 21 115 36 38 134 47 . . . . 127 11 3 11 Influence Increases 3055 | 5 266 916 145 453 138 5 114 140 20 15 524 . 139 175 Destroy 0b10 Robot/C 1320 | . 120 540 60 80 20 . 80 100 20 . 100 . 80 120 Destroy 0b10 Robot/NC 225 | 5 20 55 30 5 25 5 5 . . 15 20 . 20 20 Destroy Leader 312 | . 34 148 10 10 18 . 10 10 . . 20 . 32 20 Allied During Kill 19 | . . . . . . . 19 . . . . . . . Successful Hack 39 | . 8 14 . 12 . . . . . . . . 5 . Disable Machine 210 | . 75 75 . 15 15 . . . . . 15 . . 15 Destroy Structure 60 | . 9 24 . 1 . . . . . . 24 . 2 . Advance Influence 150 | . . . . . . . . . . . 150 . . . Partial Spotted 90 | . . 15 . 30 15 . . . . . 30 . . . Lose Combat Pursuer 630 | . . 45 45 300 45 . . 30 . . 165 . . . Influence Decreases 3055 | 5 266 576 449 176 331 92 147 90 70 15 426 98 139 175 Entered New Map 578 | . . . 208 23 171 62 13 . 50 . . 51 . . Time Decay 1816 | 5 176 455 231 133 130 30 120 70 . 15 246 47 76 82 Lost Part 641 | . 90 121 10 20 30 . 14 20 20 . 160 . 63 93 Lost Ally 20 | . . . . . . . . . . . 20 . . . Squads Dispatched 15 | . . 2 . 4 3 . . . . . 2 . 2 2 Investigation 3 | . . 2 . . 1 . . . . . . . . . Extermination 4 | . . . . . 1 . . . . . 1 . 1 1 Reinforcement 8 | . . . . 4 1 . . . . . 1 . 1 1 Assault . | . . . . . . . . . . . . . . . Garrison . | . . . . . . . . . . . . . . . Intercept . | . . . . . . . . . . . . . . . Searches Triggered . | . . . . . . . . . . . . . . . Construction Impeded 1 | . . . . 1 . . . . . . . . . . Haulers Reinforced 2 | . . . . . 1 . . . . . . . 1 . Active Scanning Responses . | . . . . . . . . . . . . . . . Cargo Convoy Interrupts . | . . . . . . . . . . . . . . . Stealth | -11 -10 -9 -9 -8 -7 -6 -6 -6 -6 -5 -5 -4 -3 -3 --------- Run | Yrd Mat Mat Min Mat Fac Fac Low Low Dat Pro Fac Fac Res Tes Distress Signals 16 | . 1 3 2 5 . . . . . . 4 . . 1 Communications Jammed 3 | . . . . . . . . . . . . . 3 . Distress Signals 1 | . . . . . . . . . . . . . 1 . Times Spotted 165 | . 14 34 7 35 6 . 8 7 4 2 18 1 12 17 Peak Tracking Total 16 | . 3 6 6 16 3 . 4 4 4 2 8 1 4 7 Tactical Retreats 20 | . . 2 4 6 1 . . 1 . . 5 . 1 . ECM-based Alert Blocks 2 | . . . . . . . . . . . . . 2 . Traps | -11 -10 -9 -9 -8 -7 -6 -6 -6 -6 -5 -5 -4 -3 -3 ------- Run | Yrd Mat Mat Min Mat Fac Fac Low Low Dat Pro Fac Fac Res Tes Traps Triggered 4 | . . 1 . . . . . . . . . . 2 1 Indirectly . | . . . . . . . . . . . . . . . Trap Hack Attempts 12 | . . . . . 7 . . . . . . . . 5 Triggered . | . . . . . . . . . . . . . . . Disarmed 1 | . . . . . 1 . . . . . . . . . Reprogrammed 1 | . . . . . . . . . . . . . . 1 Reused . | . . . . . . . . . . . . . . . Traps Extracted . | . . . . . . . . . . . . . . . Installed . | . . . . . . . . . . . . . . . Triggered . | . . . . . . . . . . . . . . . Machines | -11 -10 -9 -9 -8 -7 -6 -6 -6 -6 -5 -5 -4 -3 -3 ---------- Run | Yrd Mat Mat Min Mat Fac Fac Low Low Dat Pro Fac Fac Res Tes Machines Disabled 15 | . 5 5 . 1 1 . 1 . . . 1 . . 1 Max in Single Turn 3 | . 3 1 . 1 1 . 1 . . . 1 . . 1 Garrison Access 1 | . . . . . . . . . . . 1 . . . Machines Repaired . | . . . . . . . . . . . . . . . Machines Dismantled . | . . . . . . . . . . . . . . . Machines Sabotaged . | . . . . . . . . . . . . . . . Overloaded Fab Kills . | . . . . . . . . . . . . . . . Hacking | -11 -10 -9 -9 -8 -7 -6 -6 -6 -6 -5 -5 -4 -3 -3 --------- Run | Yrd Mat Mat Min Mat Fac Fac Low Low Dat Pro Fac Fac Res Tes Machines Accessed 37 | . 5 10 . 3 3 1 1 . 4 . 5 2 2 1 Terminals 24 | . 5 8 . 3 . 1 . . . . 3 1 2 1 Fabricators . | . . . . . . . . . . . . . . . Repair Stations . | . . . . . . . . . . . . . . . Recycling Units 3 | . . . . . 1 . . . . . 1 1 . . Scanalyzers 3 | . . 2 . . 1 . . . . . . . . . Garrison Access 2 | . . . . . 1 . . . . . 1 . . . Total Hacks 113 | . 17 26 . 10 6 1 2 . 29 . 9 5 6 2 Successful 65 | . 5 12 . 3 4 . 2 . 29 . 6 2 2 . Failed 48 | . 12 14 . 7 2 1 . . . . 3 3 4 2 Catastrophic 6 | . . 1 . 1 1 1 . . . . 1 . 1 . Database Lockouts . | . . . . . . . . . . . . . . . Manual 43 | . 14 13 . 9 . . . . . . 5 . . 2 Terminals 66 | . 17 21 . 10 . 1 . . . . 6 3 6 2 Fabricators . | . . . . . . . . . . . . . . . Repair Stations . | . . . . . . . . . . . . . . . Recycling Units 5 | . . . . . 1 . . . . . 2 2 . . Scanalyzers 8 | . . 5 . . 3 . . . . . . . . . Garrison Access 3 | . . . . . 2 . . . . . 1 . . . Terminal Hacks 44 | . 2 4 . 3 . . 2 . 29 . 1 1 2 . Record 14 | . . . . . . . 2 . 11 . . . 1 . Part Schematic 8 | . . . . . . . . . 8 . . . . . Robot Schematic 7 | . . . . . . . . . 7 . . . . . Prototype ID Bank 9 | . 1 3 . 1 . . . . 3 . 1 . . . Emergency Access Points 1 | . . . . . . . . . . . . 1 . . Locate Traps 1 | . . 1 . . . . . . . . . . . . Zone Layout 4 | . 1 . . 2 . . . . . . . . 1 . Fabricator Hacks . | . . . . . . . . . . . . . . . Repair Station Hacks . | . . . . . . . . . . . . . . . Recycling Unit Hacks 3 | . . . . . 1 . . . . . 1 1 . . Report Inventory 3 | . . . . . 1 . . . . . 1 1 . . Scanalyzer 7 | . . 4 . . 3 . . . . . . . . . Retrieve Study 7 | . . 4 . . 3 . . . . . . . . . Garrison Access Hacks 1 | . . . . . . . . . . . 1 . . . Seal Access 1 | . . . . . . . . . . . 1 . . . Unauthorized Hacks 10 | . 3 4 . . . . . . . . 3 . . . Terminals 10 | . 3 4 . . . . . . . . 3 . . . Track 1 | . . . . . . . . . . . 1 . . . Assimilate 1 | . . 1 . . . . . . . . . . . . Botnet 4 | . 1 2 . . . . . . . . 1 . . . Operators 4 | . 2 1 . . . . . . . . 1 . . . Fabricators . | . . . . . . . . . . . . . . . Repair Stations . | . . . . . . . . . . . . . . . Recycling Units . | . . . . . . . . . . . . . . . Scanalyzers . | . . . . . . . . . . . . . . . Garrison Access . | . . . . . . . . . . . . . . . Data Cores Recovered 1 | . . . . . . . . . . . 1 . . . Used 1 | . . . . . . . . . . . 1 . . . Hacking Detections 29 | . 4 10 . 3 3 1 . . . . 4 2 2 . Full Trace Events 3 | . 1 1 . . 1 . . . . . . . . . Feedback Events . | . . . . . . . . . . . . . . . Feedback Blocked . | . . . . . . . . . . . . . . . Robot Schematics Acquired 8 | . . . . . . . . . 7 . . . . 1 Robots Built . | . . . . . . . . . . . . . . . Authchips . | . . . . . . . . . . . . . . . Time . | . . . . . . . . . . . . . . . Total Robot Build Rating . | . . . . . . . . . . . . . . . Part Schematics Acquired 11 | . . . . . . . . . 8 . . . . 3 Parts Built . | . . . . . . . . . . . . . . . Authchips . | . . . . . . . . . . . . . . . Time . | . . . . . . . . . . . . . . . Total Part Build Rating . | . . . . . . . . . . . . . . . Part Studies Acquired 7 | . . 4 . . 3 . . . . . . . . . Parts Repaired . | . . . . . . . . . . . . . . . Time . | . . . . . . . . . . . . . . . Parts Recycled . | . . . . . . . . . . . . . . . Recycled Matter . | . . . . . . . . . . . . . . . Retrieved Matter . | . . . . . . . . . . . . . . . Retrieved Components . | . . . . . . . . . . . . . . . Parts Scanalyzed . | . . . . . . . . . . . . . . . Part Schematics Acquired . | . . . . . . . . . . . . . . . Parts Damaged . | . . . . . . . . . . . . . . . Bothacking | -11 -10 -9 -9 -8 -7 -6 -6 -6 -6 -5 -5 -4 -3 -3 ------------ Run | Yrd Mat Mat Min Mat Fac Fac Low Low Dat Pro Fac Fac Res Tes Used RIF Installer . | . . . . . . . . . . . . . . . Robots Hacked 3 | . 3 . . . . . . . . . . . . . Non-combat 3 | . 3 . . . . . . . . . . . . . Combat . | . . . . . . . . . . . . . . . Robot Hacks Applied 4 | . 4 . . . . . . . . . . . . . parse_system 1 | . 1 . . . . . . . . . . . . . no_distress 2 | . 2 . . . . . . . . . . . . . find_recycling 1 | . 1 . . . . . . . . . . . . . Relay Couplers Released . | . . . . . . . . . . . . . . . Fabnet Peak Effective % . | . . . . . . . . . . . . . . . Robots Rewired 4 | . . . . . . . 3 . . . 1 . . . Allies Hacked . | . . . . . . . . . . . . . . . Hacks Repelled . | . . . . . . . . . . . . . . . Allies | -11 -10 -9 -9 -8 -7 -6 -6 -6 -6 -5 -5 -4 -3 -3 -------- Run | Yrd Mat Mat Min Mat Fac Fac Low Low Dat Pro Fac Fac Res Tes Total Allies 4 | . . . . . . . 3 . . . 1 . . . Largest Group 3 | . . . . . . . 3 . . . 1 . . . Highest-Rated Group 60 | . . . . . . . 60 . . . 29 . . . Highest-Rated Ally 29 | . . . . . . . 20 . . . 29 . . . Total Orders 3 | . . . . . . . 2 . . . 1 . . . ROAM 2 | . . . . . . . 1 . . . 1 . . . GUARD 1 | . . . . . . . 1 . . . . . . . Ally Attacks 17 | . . . . . . . 5 . . . 12 . . . Total Damage 222 | . . . . . . . 71 . . . 151 . . . Kills 2 | . . . . . . . 1 . . . 1 . . . Allies Corrupted . | . . . . . . . . . . . . . . . Allies Melted 1 | . . . . . . . . . . . 1 . . . Intel | -11 -10 -9 -9 -8 -7 -6 -6 -6 -6 -5 -5 -4 -3 -3 ------- Run | Yrd Mat Mat Min Mat Fac Fac Low Low Dat Pro Fac Fac Res Tes Active Infowar (turns) 3828 | . . 38 452 465 264 76 362 154 29 93 482 232 821 360 Optics 1524 | . . . . . . . . . . . 111 232 821 360 Sensors 1919 | . . 38 . 454 264 76 130 . . . 264 232 461 . IFF 113 | . . . . . . . . . . . . . 113 . Terrain 444 | . . . 407 . . . . . . . 37 . . . Traps 300 | . . . . . . . 117 154 29 . . . . . Seismic 311 | . . . 45 11 . . 232 23 . . . . . . Cloaking 548 | . . . . . . . 108 . . 93 347 . . . Jamming 544 | . . . . . . . . . . . . 4 540 . ECM 220 | . . . . . . . . . . . . 1 219 . Robot Analysis Total 154 | . . . . . . . . . 154 . . . . . Derelict Logs Recovered 8 | . . . 2 . . . 2 1 . 3 . . . . Drone Launches . | . . . . . . . . . . . . . . . Drone Recoveries . | . . . . . . . . . . . . . . . Exploration | -11 -10 -9 -9 -8 -7 -6 -6 -6 -6 -5 -5 -4 -3 -3 ------------- Run | Yrd Mat Mat Min Mat Fac Fac Low Low Dat Pro Fac Fac Res Tes Turns Passed 7239 | 90 723 1879 831 482 264 76 383 154 42 232 533 232 825 493 Spaces Moved 6446 | 67 406 775 462 496 523 190 869 312 104 552 790 191 414 295 Core 356 | 11 . . . . . . . . . . 159 8 29 149 Treads 576 | . . 42 462 . . . . . . . . . 3 69 Legs 1186 | 56 150 733 . . . . . . . . . . 247 . Wheels 509 | . 256 . . . . . . . . . . 176 . 77 Hover 142 | . . . . . . . . . . . . 7 135 . Flight 3677 | . . . . 496 523 190 869 312 104 552 631 . . . Fastest Speed 23 | 50 100 105 160 29 27 27 27 27 27 25 23 50 50 50 Average Speed 76 | 109 123 174 160 30 28 29 28 28 28 25 31 107 142 114 Slowest Speed 370 | 120 175 240 160 31 29 102 104 106 32 32 250 200 370 160 Overloaded Moves . | . . . . . . . . . . . . . . . Propulsion Burnouts . | . . . . . . . . . . . . . . . Robots Hopped 2 | . . . . 2 . . . . . . . . . . Potential Cave-ins 2 | . . . . . . . . . . . 2 . . . Cave-ins Triggered 1 | . . . . . . . . . . . 1 . . . Exploration Rate (%) 41 | 4 64 53 74 59 14 3 76 49 77 80 20 4 13 33 Regions Visited 14 Branch Regions 6 Pre-discovered Areas 32 | . . . . . . . . . 30 2 . . . . Known Exits Taken 13 | . 1 1 1 1 1 1 1 1 1 1 1 1 1 . Unknown Exits Taken 1 | 1 . . . . . . . . . . . . . . Scrap Searched 6 | . . . 1 . . . 3 1 . 1 . . . . Spaces Dug 14 | . . . . . . . . . . . 14 . . . Terrain Destroyed 61 | . 11 18 . . . . 18 . . . 14 . . . Melee 14 | . . . . . . . . . . . 14 . . . Projectile 13 | . . 13 . . . . . . . . . . . . AOE 34 | . 11 5 . . . . 18 . . . . . . . Terrain Rammed . | . . . . . . . . . . . . . . . Walls Destroyed . | . . . . . . . . . . . . . . . Machines Disabled . | . . . . . . . . . . . . . . . Actions | -11 -10 -9 -9 -8 -7 -6 -6 -6 -6 -5 -5 -4 -3 -3 --------- Run | Yrd Mat Mat Min Mat Fac Fac Low Low Dat Pro Fac Fac Res Tes Total 8062 | 77 547 1097 504 791 611 204 976 355 114 631 1002 216 559 378 Wait 850 | . 64 118 12 249 35 1 73 23 1 67 116 17 62 12 Move 6428 | 66 405 774 461 491 522 189 868 311 103 551 789 190 413 295 Hop 2 | . . . . 2 . . . . . . . . . . Pick Up 68 | 3 13 17 1 1 6 4 3 2 1 . 5 . 4 8 Fast Attach 106 | 6 5 20 2 4 7 2 2 3 2 2 6 7 22 16 Attach 60 | . 4 11 . 6 3 2 2 2 2 3 9 2 8 6 Detach 28 | . 1 6 . 2 4 1 2 . 1 1 6 . 3 1 Swap 64 | . 8 23 5 4 3 4 6 1 . . 8 . 1 1 Drop 64 | . 3 24 3 13 8 . . 1 3 . 7 . 2 . Fire 247 | 2 39 103 20 19 . . 1 . . . . . 35 28 Melee 123 | . 5 . . . 16 1 19 12 1 7 56 . 6 . Ram 7 | . . . . . . . . . . . . . 3 4 Kick 1 | . . 1 . . . . . . . . . . . . Crush . | . . . . . . . . . . . . . . . Escape Stasis 2 | . . . . . . . . . . . . . . 2 Rewire . | . . . . . . . . . . . . . . . Trap 12 | . . . . . 7 . . . . . . . . 5 Miscellaneous . | . . . . . . . . . . . . . . . Route ------- -11/Scrapyard -10/Materials (discovered 4 exits: *Mat x3 / [*Min]) -9/Materials (discovered 3 exits: *Mat / *Min / *Sto) -9/Mines (discovered 2 exits: *Mat x2) -8/Materials -7/Factory -6/Factory -6/Lower Caves -6/Lower Caves (discovered 2 exits: *Fac / *Dat) -6/Data Miner -5/Proximity Caves -5/Factory -4/Factory -3/Research -3/Testing History --------- Turn | Location | Event 2 | -11/Scrapyard | Met Revision 17 24 | -11/Scrapyard | Discovered new exit (range 16) 91 | -11/Scrapyard | Entered Materials 222 | -10/Materials | Discovered new exit (range 8) 245 | -10/Materials | Discovered new exit (range 13) 361 | -10/Materials | Build established: Mutant 573 | -10/Materials | Discovered new exit (range 4) 576 | -10/Materials | Identified exit to Materials 657 | -10/Materials | Core integrity fell below 50% 705 | -10/Materials | Lost 6 parts (1p3n2w) 708 | -10/Materials | Discovered exit to Materials (range 16) 814 | -10/Materials | Entered another Materials area 814 | -9/Materials | Evolved 2 slots: Propulsion x1, Utility x1 1485 | -9/Materials | Build established: Scavenger-Mutant 1931 | -9/Materials | Discovered new exit (range 16) 1957 | -9/Materials | Identified exit to Materials 2276 | -9/Materials | Build established: Mutant 2292 | -9/Materials | Lost 4 parts (2n2w) 2309 | -9/Materials | Core integrity fell below 50% 2444 | -9/Materials | Discovered new exit (range 16) 2658 | -9/Materials | Discovered new exit (range 15) 2663 | -9/Materials | Identified exit to Storage 2680 | -9/Materials | Identified exit to Mines 2693 | -9/Materials | Entered Mines 3162 | -9/Mines | Discovered exit to Materials (range 8) 3189 | -9/Mines | Learned Materials terminal intel 3190 | -9/Mines | Discovered exit to Materials (range 6) 3352 | -9/Mines | Build established: Scavenger-Mutant 3373 | -9/Mines | Excavation squad dispatched 3373 | -9/Mines | A large section of the Mines collapsed 3524 | -9/Mines | Entered Materials 3524 | -8/Materials | Evolved 2 slots: Power x1, Propulsion x1 3525 | -8/Materials | Loaded intel: 8 terminal locations 3809 | -8/Materials | Build established: Sprinter 4002 | -8/Materials | Discovered new exit (range 16) 4006 | -8/Materials | Identified exit to Factory 4006 | -8/Materials | Entered Factory 4006 | -7/Factory | Evolved 2 slots: Propulsion x1, Utility x1 4262 | -7/Factory | Discovered new exit (range 9) 4268 | -7/Factory | Identified exit to Factory 4270 | -7/Factory | Entered another Factory area 4270 | -6/Factory | Evolved 2 slots: Utility x2 4283 | -6/Factory | Discovered new exit (range 12) 4292 | -6/Factory | Identified exit to Lower Caves 4346 | -6/Factory | Entered Lower Caves 4370 | -6/Lower Caves | Learned 8 Factory zone layouts 4382 | -6/Lower Caves | Attacked by a delusional Derelict stockpiling Unaware 4511 | -6/Lower Caves | Identified exit to Lower Caves 4584 | -6/Lower Caves | Entered a destroyed Warlord outpost 4723 | -6/Lower Caves | Ambushed by wild Derelicts 4729 | -6/Lower Caves | Entered another Lower Caves area 4783 | -6/Lower Caves | Lost 3 parts (1p1n1u) 4799 | -6/Lower Caves | Learned Factory trap positions 4815 | -6/Lower Caves | Discovered new exit (range 5) 4816 | -6/Lower Caves | Identified exit to Factory 4860 | -6/Lower Caves | Discovered new exit (range 13) 4863 | -6/Lower Caves | Identified exit to Data Miner 4883 | -6/Lower Caves | Entered Data Miner 4884 | -6/Data Miner | Discovered new exit (range 6) 4886 | -6/Data Miner | Identified exit to Proximity Caves 4890 | -6/Data Miner | Met Data Miner 4896 | -6/Data Miner | Learned location of Section 7 (-2) 4896 | -6/Data Miner | Acquired the access code to Warlord's prototype stash 4901 | -6/Data Miner | Received God Mode back door access code from Data Miner 4907 | -6/Data Miner | Destroyed Data Miner 4910 | -6/Data Miner | Interfaced with the Data Conduit 4911 | -6/Data Miner | Found Prototype Hackware 4911 | -6/Data Miner | Identified Deep Network Scanner 4915 | -6/Data Miner | Found Prototype Hackware 4915 | -6/Data Miner | Identified System Mapper 4925 | -6/Data Miner | Entered Proximity Caves 4928 | -5/Proximity Caves | Spotter reported a threat 4954 | -5/Proximity Caves | Lost 5 parts (1p3n1u) 4996 | -5/Proximity Caves | Learned Factory trap positions 5124 | -5/Proximity Caves | Discovered exit to Factory (range 8) 5157 | -5/Proximity Caves | Entered Factory 5157 | -5/Factory | Evolved 2 slots: Propulsion x1, Utility x1 5158 | -5/Factory | Identified exit to Factory 5159 | -5/Factory | Loaded intel: 80 trap records 5160 | -5/Factory | Loaded intel: 259 machine locations 5214 | -5/Factory | Build established: Hacker-Sprinter 5534 | -5/Factory | Core integrity fell below 50% 5558 | -5/Factory | Crushed by falling debris 5558 | -5/Factory | System corruption reached 10% 5617 | -5/Factory | Lost 15 parts (2p7n6u) 5642 | -5/Factory | Core integrity fell below 20% 5690 | -5/Factory | Entered another Factory area 5690 | -4/Factory | Evolved 2 slots: Utility x2 5691 | -4/Factory | Loaded intel: 73 trap records 5692 | -4/Factory | Loaded intel: 253 machine locations 5905 | -4/Factory | Discovered new exit (range 11) 5920 | -4/Factory | Identified exit to Research 5922 | -4/Factory | Entered Research 5922 | -3/Research | Evolved 2 slots: Utility x1, Weapon x1 5923 | -3/Research | Loaded intel: 101 machine locations 6410 | -3/Research | System corruption reached 10% 6414 | -3/Research | Lost 4 parts (1n2u1w) 6473 | -3/Research | Lost 3 parts (2n1w) 6562 | -3/Research | System corruption reached 30% 6568 | -3/Research | Lost 5 parts (1p1n1u2w) 6732 | -3/Research | Core integrity fell below 50% 6740 | -3/Research | Discovered new exit (range 7) 6743 | -3/Research | Identified exit to Testing 6747 | -3/Research | Entered Testing 6748 | -3/Testing | Loaded intel: 73 machine locations 6770 | -3/Testing | Lost 16 parts (3p5n4u4w) 6833 | -3/Testing | Spotted PP-NP7Z8POZW2 6996 | -3/Testing | Build established: Mutant 7089 | -3/Testing | Lost 4 parts (3u1w) 7180 | -3/Testing | Scanned by Researcher 7225 | -3/Testing | Core integrity fell below 20% 7241 | -3/Testing | System corrupted Last Messages --------------- 07225_ Com. Wheel destroyed. 07226_ P-80 Master resets P-80 Master, system corruption cleaned. 07226_ Slammed into G-67 Veteran. 07226_ Destabilizing: System interference. 07226_ Stasis Beam temporarily disabled. 07226_ Imp. Signal Interpreter temporarily disabled. 07226_ Enh. Optical Array temporarily disabled. 07227_ Acquired 3 matter. 07228_ R-10 Processor collects Sml. Battery. 07231_ Stasis Beam destroyed. 07231_ Enh. Armored Medium Treads destroyed. 07232_ 8ADUKCB73CJZFB8W|&M=RWX>BECVZWG> 07233_ K-01 Serf collects debris. 07236_ P-80 Master resets P-80 Master, system corruption cleaned. 07238_ K-01 Serf collects debris. 07238_ Slammed into K-01 Serf. 07241_ Cogmind system terminally corrupted. Map ----- +----------------------------------------------------+ | ?????# # %!! """ #?????????? | | ?????## # ! """ #?????????? | | ?????# # #?????????? | | ?????# # ! """ #?????????? | | ?????# # # """ #?????????? | | ?????## # ! """ #?????????? | | ??????# # ########### """ ??????????? | | ??????# ## # #??????? """ ??????????? | | ??????# # # ##???????? ??????????? | | ??????# #?????????? """ #?????????? | | ??????## ##???????????""" #?????????? | | ???????## # ###????????????""" #?????????? | | ????????### # ##############????""" #?????????? | | ??????????#### ###### #????""" ??????????? | | ?????????????# + #??????? ??????????? | | ?????????????######## #????""" ??????????? | | ????????????????????# #????""" ??????????? | | ????????????????????# #????""" ####??????? | | ????????????????????# #????""" #??????? | | ????????????????????# % #????""" #??????? | | ????????????????????# %% % #??????? #??????? | | ????????????????????# % #??????? #??????? | | ????????????????????###/######???????# #??????? | | ????????????????????# #???????????# #??????? | | ????????????????????# " ############# #??????? | | ????????????????????# " k@%/ # #??????? | | ????????????????????# ###% % # #??"""?? | | ??????"""?"""???????## ##?# p# #??T??"? | | ??????"""?"""????????# #??# %gR #??????? | | ??????"""?"""????????# #??# # #??""""? | | ?????????????????????# #??# # T# | | ?????????????????????# #??# # # | | ?????????????????????# #??# # ######## | | ?????????????????????# #??########### #??????? | | ????????????????????? ???????????? #??????? | | ????????????????????? ???????????? #??????? | | ???????????"""???"""?""" """?"""?"""?""" #??????? | | ??????????""T""??""" """ """?"""?"""?""" #??????? | | ??????????""?""??""" """ """?"""?"""?""" #??????? | | ?????????????????""" """ ????"""?"""?""" ??????? | | ?????????????????""" """ ????"""?"""?""" ??????? | | ??????????????????? ???? ???????????? ?????? | | ???"""????????????? ???? ??????????????? ?????? | | ???"""?????"""?"""??????#??????????????? ?????? | | ???"""?????"""T"""??????????????????????? !????? | | ????????????????????????????????????????? ????? | | ????????????????????????????????????????? ????? | | ????????????"""?"""??????????""G""??????? !]???? | | ????????????"""?"""???????????"?"????????? !]???? | | ????????????"""?"""??????????????????????????????? | +----------------------------------------------------+ Best States ------------- Heat Dissipation 71 Energy Generation 41 Energy Capacity 860 Matter Stores 300 Matter Capacity 300 Sight Range 22 Robot Scan Range 16 Terrain Scan Range 20 Terrain Scan Density 210 ECM Strength 2 Jamming Range 16 Cloak Strength 3 Additional Mass Support 6 Armor Coverage 600 Resistance: TH 10 Propulsion Shielding 33 Evasion (%) 65 Core Analysis 6 Recoil Reduction 3 Energy Filtering 30 Kinecelleration 40 Offensive Hacking 45 Defensive Hacking 10 Item Schematics ----------------- Combat Drone Bay | -6/Data Miner | Free Lgt. Regenerative Plating | -6/Data Miner | Free Enh. Armored Leg | -6/Data Miner | Free Imp. Thermal Defense Suite | -6/Data Miner | Free Hvy. Gatling Laser | -6/Data Miner | Free Imp. Linear Gravjet | -6/Data Miner | Free Nanoactuators | -6/Data Miner | Free HERF Cannon | -6/Data Miner | Free Adv. Variable Charge Gun | -3/Testing | Archive Vibroblade | -3/Testing | Archive Hvy. Dispersion Rifle | -3/Testing | Archive Robot Schematics ------------------ R-10 Processor | -6/Data Miner | Free B-48 Gladiator | -6/Data Miner | Free S-27 Virus | -6/Data Miner | Free H-77 Assassin | -6/Data Miner | Free G-50 Soldier | -6/Data Miner | Free A-15 Conveyor | -6/Data Miner | Free D-63 Destroyer | -6/Data Miner | Free A-02 Transporter | -3/Testing | Archive Fabricated ------------ Nothing Repaired ---------- Nothing Studied --------- Aluminum Leg | -9/Materials | Hacked Flight Unit | -9/Materials | Hacked Datajack | -9/Materials | Hacked Lgt. Ion Engine | -9/Materials | Hacked Spear | -7/Factory | Hacked Cesium-ion Thruster | -7/Factory | Hacked Mining Laser | -7/Factory | Hacked Alien Tech Used ----------------- None Achievements -------------- None Challenges ------------ None Game ------ Seed PartitionNullInterpreter Manual? 0 Play Time 02:13:08 Cumulative 129.0 hours Start 2026.03.04 @ 03:06:41 End 2026.03.04 @ 05:24:05 Sessions 1 Manual Loads 0 Difficulty Rogue Special Mode None Game No. 110 Rogue 110 Adventurer 0 Explorer 0 Win Type - Total 0 Types 0/0/0/0/0/0/0/0/0/0 Lore% 51 Gallery% 46 Achievement% 36 Wizard Run 0 Options --------- Layout 1 ASCII 1 Keyboard 1 Movement Numpad Keybinds 0 Fullscreen 1 Font 24/Smallcaps Map View 50x35 Zoom Use 0% Tactical HUD 1 Map Filters NONE Filters NONE Steam 1 RUN: 39149f1c-2547-4338-978a-abd9bf215243